fUST/lending_fUST_20241203
["ID","MTS","AMOUNT","RATE_DAILY","PERIOD"]
[343992544,1733170241707,-500.0,0.00028219,7]
[343992545,1733170241718,-350.88441053,0.00028219,7]
[343992546,1733170241729,-500.0,0.00028219,7]
[343992547,1733170241744,-500.0,0.00028219,7]
[343992548,1733170241754,-500.0,0.00028219,7]
[343992549,1733170241764,-500.0,0.00028219,7]
[343992550,1733170241775,-506.61,0.00028219,7]
[343992551,1733170241785,-500.0,0.00028219,7]
[343992553,1733170241795,-500.0,0.00028219,7]
[343992554,1733170241804,-500.0,0.00028219,7]
[343992555,1733170241814,-500.0,0.00028219,7]
[343992556,1733170241824,-500.0,0.00028219,7]
[343992557,1733170241835,-500.0,0.00028219,7]
[343992559,1733170241846,-500.0,0.00028219,7]
[343992560,1733170241856,-500.0,0.00028219,7]
[343992561,1733170241865,-500.0,0.00028219,7]
[343992562,1733170241875,-2913.63,0.00028219,7]
[343992563,1733170241885,-525.01464265,0.00028219,7]
[343992564,1733170241895,-500.0,0.00028219,7]
[343992565,1733170241904,-500.0,0.00028219,7]
[343992566,1733170241915,-500.0,0.00028219,7]
[343992567,1733170241924,-500.0,0.00028219,7]
[343992568,1733170241934,-2577.63,0.00028219,7]
[343992569,1733170241943,-500.0,0.00028219,7]
[343992570,1733170241954,-393.03229097,0.00028493,7]
[343992571,1733170241963,-500.0,0.00028493,7]
[343992572,1733170241973,-882.92,0.00028493,7]
[343992573,1733170241983,-500.0,0.00028493,7]
[343992574,1733170241993,-500.0,0.00028493,7]
[343992575,1733170242002,-500.0,0.00028493,7]
[343992576,1733170242012,-500.0,0.00028493,7]
[343992577,1733170242021,-500.0,0.00028493,7]
[343992578,1733170242032,-500.0,0.00028493,7]
[343992579,1733170242041,-500.0,0.00028493,7]
[343992580,1733170242051,-500.0,0.00028493,7]
[343992581,1733170242060,-552.55,0.00028493,7]
[343992582,1733170242070,-500.0,0.00028493,7]
[343992583,1733170242080,-500.0,0.00028493,7]
[343992584,1733170242091,-500.0,0.00028493,7]
[343992585,1733170242174,-500.0,0.00028493,7]
[343992586,1733170242195,-394.7,0.00028493,7]
[343992587,1733170242207,-2913.63,0.00028493,7]
[343992588,1733170242217,-500.0,0.00028493,7]
[343992590,1733170242227,-500.0,0.00028493,7]
[343992591,1733170242236,-500.0,0.00028493,7]
[343992592,1733170242246,-500.0,0.00028493,7]
[343992593,1733170242255,-2577.63,0.00028493,7]
[343992594,1733170242265,-500.0,0.00028493,7]
[343992595,1733170242275,-160.28074943,0.00028505,2]
[343992596,1733170242287,-1000.0,0.00028521,5]
[343992597,1733170242296,-208.86269436,0.00028667,2]
[343992598,1733170242306,-1152.0,0.00028698,2]
[343992599,1733170242316,-500.0,0.00028767,7]
[343992600,1733170242326,-882.92,0.00028767,7]
[343992601,1733170242337,-500.0,0.00028767,7]
[343992602,1733170242346,-500.0,0.00028767,7]
[343992603,1733170242357,-500.0,0.00028767,7]
[343992604,1733170242367,-500.0,0.00028767,7]
[343992605,1733170242377,-317.01742384,0.00028767,7]
[343992606,1733170242387,-500.0,0.00028767,7]
[343992607,1733170242397,-165.36922323,0.00028767,7]
[343992608,1733170242408,-500.0,0.00028767,7]
[343992609,1733170242418,-500.0,0.00028767,7]
[343992610,1733170242428,-500.0,0.00028767,7]
[343992611,1733170242437,-500.0,0.00028767,7]
[343992612,1733170242447,-2913.63,0.00028767,7]
[343992613,1733170242457,-500.0,0.00028767,7]
[343992614,1733170242466,-500.0,0.00028767,7]
[343992615,1733170242477,-500.0,0.00028767,7]
[343992616,1733170242486,-500.0,0.00028767,7]
[343992617,1733170242497,-2577.63,0.00028767,7]
[343992618,1733170242507,-184.0,0.00028767,2]
[343992619,1733170242518,-151.500474,0.00028776,2]
[343992620,1733170242529,-187.643026,0.00028776,2]
[343992621,1733170242539,-172.183979,0.00028776,2]
[343992622,1733170242549,-187.643025,0.00028776,2]
[343992623,1733170242559,-153.5,0.000289,31]
[343992624,1733170242569,-153.5,0.000289,31]
[343992625,1733170242579,-153.5,0.000289,31]
[343992626,1733170242589,-153.5,0.000289,31]
[343992628,1733170242598,-153.5,0.000289,31]
[343992629,1733170242608,-153.5,0.000289,31]
[343992630,1733170242618,-153.5,0.000289,31]
[343992631,1733170242627,-153.5,0.000289,31]
[343992632,1733170242636,-164.0,0.00029,120]
[343992633,1733170242646,-500.0,0.00029039,7]
[343992634,1733170242656,-500.0,0.00029041,7]
[343992635,1733170242666,-882.92,0.00029041,7]
[343992636,1733170242676,-500.0,0.00029041,7]
[343992637,1733170242687,-500.0,0.00029041,7]
[343992639,1733170242696,-228.60545249,0.00029041,7]
[343992640,1733170242707,-515.94728598,0.00029041,7]
[343992641,1733170242717,-500.0,0.00029041,7]
[343992642,1733170242727,-500.0,0.00029041,7]
[343992644,1733170242738,-500.0,0.00029041,7]
[343992645,1733170242748,-500.0,0.00029041,7]
[343992646,1733170242761,-2913.63,0.00029041,7]
[343992647,1733170242771,-500.0,0.00029041,7]
[343992650,1733170242784,-500.0,0.00029041,7]
[343992652,1733170242795,-500.0,0.00029041,7]
[343992653,1733170242806,-500.0,0.00029041,7]
[343992654,1733170242816,-2577.63,0.00029041,7]
[343992655,1733170242828,-500.0,0.00029211,5]
[343992656,1733170242839,-151.500474,0.00029255,2]
[343992657,1733170242850,-500.0,0.00029315,7]
[343992658,1733170242860,-882.92,0.00029315,7]
[343992660,1733170242872,-500.0,0.00029315,7]
[343992661,1733170242883,-500.0,0.00029315,7]
[343992664,1733170242895,-371.66358818,0.00029315,7]
[343992665,1733170242905,-500.0,0.00029315,7]
[343992666,1733170242915,-500.0,0.00029315,7]
[343992667,1733170242926,-253.8,0.00029315,7]
[343992668,1733170242936,-2913.63,0.00029315,7]
[343992669,1733170242946,-500.0,0.00029315,7]
[343992671,1733170242956,-500.0,0.00029315,7]
[343992673,1733170242966,-500.0,0.00029315,7]
[343992675,1733170242976,-500.0,0.00029315,7]
[343992676,1733170242986,-2577.63,0.00029315,7]
[343992677,1733170242996,-1500.0,0.00029522,5]
[343992679,1733170243006,-500.0,0.00029589,7]
[343992681,1733170243016,-882.92,0.00029589,7]
[343992683,1733170243026,-500.0,0.00029589,7]
[343992685,1733170243037,-500.0,0.00029589,7]
[343992686,1733170243047,-500.0,0.00029589,7]
[343992688,1733170243058,-500.0,0.00029589,7]
[343992690,1733170243068,-2913.63,0.00029589,7]
[343992692,1733170243079,-500.0,0.00029589,7]
[343992694,1733170243089,-500.0,0.00029589,7]
[343992695,1733170243098,-206.25300949,0.00029589,7]
[343992696,1733170243109,-500.0,0.00029589,7]
[343992697,1733170243121,-2577.63,0.00029589,7]
[343992699,1733170243132,-151.500474,0.00029735,2]
[343992701,1733170243143,-153.0,0.00029753,30]
[343992703,1733170243155,-213.0944069,0.00029753,30]
[343992705,1733170243166,-153.0,0.00029753,30]
[343992706,1733170243178,-213.0944069,0.00029753,30]
[343992708,1733170243190,-153.0,0.00029753,30]
[343992710,1733170243203,-213.0944069,0.00029753,30]
[343992711,1733170243215,-1000.0,0.00029759,5]
[343992713,1733170243227,-500.0,0.00029863,7]
[343992714,1733170243238,-882.92,0.00029863,7]
[343992716,1733170243249,-500.0,0.00029863,7]
[343992717,1733170243261,-500.0,0.00029863,7]
[343992718,1733170243271,-500.0,0.00029863,7]
[343992719,1733170243285,-2913.63,0.00029863,7]
[343992720,1733170243297,-500.0,0.00029863,7]
[343992721,1733170243308,-500.0,0.00029863,7]
[343992722,1733170243318,-500.0,0.00029863,7]
[343992723,1733170243330,-2577.63,0.00029863,7]
[343992724,1733170243341,-153.5,0.000299,31]
[343992726,1733170243352,-153.5,0.000299,31]
[343992728,1733170243364,-153.5,0.000299,31]
[343992730,1733170243375,-153.5,0.000299,31]
[343992732,1733170243386,-153.5,0.000299,31]
[343992734,1733170243397,-153.5,0.000299,31]
[343992736,1733170243408,-153.5,0.000299,31]
[343992737,1733170243419,-153.5,0.000299,31]
[343992739,1733170243429,-153.5,0.000299,31]
[343992741,1733170243440,-153.5,0.000299,31]
[343992744,1733170243452,-153.5,0.000299,31]
[343992746,1733170243464,-153.5,0.000299,31]
[343992749,1733170243477,-153.5,0.000299,31]
[343992751,1733170243489,-153.5,0.000299,31]
[343992753,1733170243500,-153.5,0.000299,31]
[343992755,1733170243512,-153.5,0.000299,31]
[343992757,1733170243524,-151.0,0.0003,120]
[343992759,1733170243540,-205.0,0.0003,2]
[343992761,1733170243550,-151.0,0.0003,120]
[343992762,1733170243561,-162.0,0.0003,2]
[343992763,1733170243572,-9406.11862452,0.00030042,2]
[343992764,1733170243583,-1613.0,0.00030066,2]
[343992765,1733170243594,-500.0,0.00030136,7]
[343992766,1733170243606,-882.92,0.00030136,7]
[343992767,1733170243617,-500.0,0.00030136,7]
[343992768,1733170243627,-500.0,0.00030136,7]
[343992769,1733170243638,-500.0,0.00030136,7]
[343992770,1733170243649,-2913.63,0.00030136,7]
[343992771,1733170243661,-500.0,0.00030136,7]
[343992772,1733170243673,-500.0,0.00030136,7]
[343992773,1733170243685,-500.0,0.00030136,7]
[343992774,1733170243696,-2577.63,0.00030136,7]
[343992776,1733170243707,-197.042322,0.00030137,120]
[343992777,1733170243718,-9406.11862452,0.00030148,2]
[343992778,1733170243730,-186.0,0.00030205,2]
[343992779,1733170243747,-151.500474,0.00030215,2]
[343992780,1733170243758,-682.0,0.00030228,30]
[343992781,1733170243769,-500.0,0.0003041,7]
[343992782,1733170243784,-882.92,0.0003041,7]
[343992783,1733170243796,-500.0,0.0003041,7]
[343992784,1733170243810,-500.0,0.0003041,7]
[343992785,1733170243822,-457.83000086,0.0003041,7]
[343992786,1733170243833,-2913.63,0.0003041,7]
[343992787,1733170243844,-500.0,0.0003041,7]
[343992788,1733170243854,-500.0,0.0003041,7]
[343992789,1733170243864,-500.0,0.0003041,7]
[343992790,1733170243875,-2577.63,0.0003041,7]
[343992791,1733170243885,-6993.2981004,0.00030439,2]
[343992792,1733170243896,-208.86269436,0.00030439,2]
[343992793,1733170243906,-666.0,0.00030483,2]
[343992794,1733170243919,-33000.0,0.00030483,2]
[343992795,1733170243931,-4577.13531122,0.000305,2]
[343992796,1733170243942,-4577.13531121,0.000305,2]
[343992797,1733170243953,-4577.13531121,0.000305,2]
[343992798,1733170243965,-4577.13531121,0.000305,2]
[343992799,1733170243976,-3011.31672894,0.000305,2]
[343992800,1733170243987,-3011.31672892,0.000305,2]
[343992801,1733170243997,-3011.31672892,0.000305,2]
[343992802,1733170244009,-3011.31672892,0.000305,2]
[343992803,1733170244020,-980.49,0.000305,2]
[343992804,1733170244035,-151.0,0.00030533,7]
[343992805,1733170244046,-151.0,0.00030533,7]
[343992806,1733170244057,-168.530228,0.00030533,7]
[343992807,1733170244068,-151.0,0.00030533,7]
[343992808,1733170244080,-151.0,0.00030533,7]
[343992809,1733170244091,-151.0,0.00030533,7]
[343992810,1733170244103,-151.0,0.00030533,7]
[343992811,1733170244117,-151.0,0.00030533,7]
[343992812,1733170244129,-151.0,0.00030533,7]
[343992813,1733170244147,-222.241637,0.00030533,7]
[343992814,1733170244172,-157.033705,0.00030533,7]
[343992815,1733170244183,-157.033705,0.00030533,7]
[343992816,1733170244194,-157.033705,0.00030533,7]
[343992817,1733170244205,-157.033705,0.00030533,7]
[343992818,1733170244217,-157.033705,0.00030533,7]
[343992819,1733170244228,-157.033705,0.00030533,7]
[343992820,1733170244240,-157.033705,0.00030533,7]
[343992822,1733170244251,-157.033705,0.00030533,7]
[343992823,1733170244262,-157.033705,0.00030533,7]
[343992824,1733170244273,-157.033705,0.00030533,7]
[343992825,1733170244287,-157.033705,0.00030533,7]
[343992826,1733170244300,-157.033705,0.00030533,7]
[343992827,1733170244311,-222.73805917,0.00030539,2]
[343992828,1733170244322,-78187.36664585,0.00030539,2]
[343992829,1733170244333,-425.4237894,0.00030539,7]
[343992830,1733170244343,-425.4237894,0.00030539,7]
[343992831,1733170244357,-4667282.0528099,0.00030539,10]
[343992832,1733170244378,-233.0504479,0.00030539,10]
[343992833,1733170244393,-200.0,0.00030539,10]
[343992834,1733170244403,-4363.36438779,0.00030539,2]
[343992835,1733170244415,-881876.57447977,0.00030539,10]
[343992836,1733170244426,-307975.54619562,0.00030539,10]
[343992837,1733170244495,-2789.99998,0.00030539,10]
[343992838,1733170244508,-2690.18265792,0.00030539,10]
[343992839,1733170244527,-500.0,0.00027945,7]
[343992840,1733170244542,-5450.3599,0.00030539,10]
[343992841,1733170244705,-500.0,0.00028219,7]
[343992842,1733170244714,-2411.93113902,0.00028437,2]
[343992843,1733170244722,-500.0,0.00028493,7]
[343992844,1733170244731,-500.0,0.00028767,7]
[343992845,1733170244740,-500.0,0.00029041,7]
[343992846,1733170244747,-500.0,0.00029315,7]
[343992847,1733170244755,-500.0,0.00029589,7]
[343992848,1733170244763,-182568.11043106,0.00030539,10]
[343992849,1733170244776,-143871.72160542,0.00030539,10]
[343992850,1733170244789,-350.21,0.00030539,10]
[343992851,1733170244797,-941.87659,0.00030539,10]
[343992852,1733170244899,-500.0,0.00027397,7]
[343992853,1733170244908,-500.0,0.00027671,7]
[343992854,1733170244916,-500.0,0.00029863,7]
[343992855,1733170244922,-209.86830576,0.00030136,7]
[343992856,1733170244930,-29251.23467384,0.00030539,10]
[343992857,1733170244939,-2760.14073006,0.00030539,10]
[343992858,1733170244948,-1584.0,0.00030539,10]
[343992859,1733170244957,-854.12,0.00030539,10]
[343992860,1733170244965,-502.81582034,0.00030539,10]
[343992893,1733170248074,161.202822,0.00013973,2]
[343993393,1733171022187,161.202822,0.00013973,2]
[343993436,1733171432464,-3332.96119623,0.0001883,2]
[343993438,1733171432473,-3427.58139319,0.0001902,2]
[343993440,1733171432483,-1169.27083333,0.0002,2]
[343993442,1733171432492,-161.202822,0.00022759,2]
[343993444,1733171432501,-162.72479333,0.00023,2]
[343993446,1733171432511,-300.0,0.00023524,2]
[343993448,1733171432520,-300.0,0.00023524,2]
[343993450,1733171432529,-794.16873935,0.00023525,2]
[343993452,1733171432540,-1569.50978854,0.00023525,2]
[343993453,1733171432551,-283.61585959,0.00023624,2]
[343993454,1733171432560,-32311.21479364,0.00023624,2]
[343993455,1733171432572,-5942.78520636,0.00023624,2]
[343993456,1733171432581,-3843.4078927,0.00023625,2]
[343993457,1733171433083,-21056.5921073,0.00023625,2]
[343993458,1733171433096,-1913.8538038,0.00024287,2]
[343993459,1733171433109,-2363.67852789,0.00024513,2]
[343993460,1733171433120,-11652.57375663,0.00025,2]
[343993461,1733171433131,-3845.9239885,0.00025099,2]
[343993462,1733171433142,-2363.67852789,0.00025501,2]
[343993463,1733171433152,-420.0,0.00025523,2]
[343993465,1733171433161,-420.0,0.00025876,2]
[343993468,1733171433171,-1150.62,0.0002599,10]
[343993469,1733171433285,-958.85,0.0002599,10]
[343993470,1733171433295,-799.04,0.0002599,10]
[343993471,1733171433306,-10000.0,0.00026,2]
[343993472,1733171433317,-160.745,0.00026117,12]
[343993473,1733171433327,-2363.67852789,0.00026489,2]
[343993474,1733171433337,-155.26644963,0.00026713,2]
[343993475,1733171433347,-1169.27083333,0.00027397,7]
[343993476,1733171433358,-1169.27083333,0.00027397,7]
[343993477,1733171433368,-1169.27083333,0.00027397,7]
[343993478,1733171433378,-500.0,0.00027397,7]
[343993479,1733171433389,-500.0,0.00027397,7]
[343993480,1733171433400,-500.0,0.00027397,7]
[343993481,1733171433410,-500.0,0.00027397,7]
[343993482,1733171433421,-1091.53,0.00027397,7]
[343993483,1733171433431,-500.0,0.00027397,7]
[343993484,1733171433442,-500.0,0.00027397,7]
[343993485,1733171433452,-500.0,0.00027397,7]
[343993486,1733171433466,-434.85346107,0.00027397,7]
[343993487,1733171433476,-500.0,0.00027397,7]
[343993488,1733171433487,-500.0,0.00027397,7]
[343993490,1733171433496,-500.0,0.00027397,7]
[343993491,1733171433506,-500.0,0.00027397,7]
[343993492,1733171433515,-500.0,0.00027397,7]
[343993493,1733171433525,-500.0,0.00027397,7]
[343993494,1733171433535,-168.0,0.00027397,7]
[343993495,1733171433546,-500.0,0.00027397,7]
[343993496,1733171433556,-500.0,0.00027397,7]
[343993497,1733171433566,-500.0,0.00027397,7]
[343993498,1733171433576,-500.0,0.00027397,7]
[343993499,1733171433586,-500.0,0.00027397,7]
[343993500,1733171433596,-500.0,0.00027397,7]
[343993501,1733171433606,-500.0,0.00027397,7]
[343993502,1733171433616,-500.0,0.00027397,7]
[343993503,1733171433626,-500.0,0.00027397,7]
[343993504,1733171433636,-500.0,0.00027397,7]
[343993505,1733171433646,-4006.23,0.00027397,7]
[343993506,1733171433655,-500.0,0.00027397,7]
[343993507,1733171433665,-373.83658762,0.00027397,7]
[343993508,1733171433675,-500.0,0.00027397,7]
[343993509,1733171433684,-500.0,0.00027397,7]
[343993510,1733171433694,-500.0,0.00027397,7]
[343993511,1733171433703,-583.8,0.00027397,7]
[343993512,1733171433716,-500.0,0.00027397,7]
[343993513,1733171433726,-500.0,0.00027397,7]
[343993514,1733171433736,-2367.49,0.00027397,7]
[343993515,1733171433745,-500.0,0.00027397,7]
[343993516,1733171433755,-500.0,0.00027397,7]
[343993517,1733171433766,-500.0,0.00027397,7]
[343993518,1733171433776,-500.0,0.00027397,7]
[343993519,1733171433786,-500.0,0.00027397,7]
[343993520,1733171433796,-500.0,0.00027397,7]
[343993521,1733171433806,-500.0,0.00027397,7]
[343993522,1733171433816,-253.32451548,0.00027397,7]
[343993523,1733171433825,-500.0,0.00027397,7]
[343993524,1733171433835,-500.0,0.00027397,7]
[343993525,1733171433844,-500.0,0.00027397,7]
[343993526,1733171433854,-500.0,0.00027397,7]
[343993527,1733171433864,-500.0,0.00027397,7]
[343993528,1733171433874,-500.0,0.00027397,7]
[343993529,1733171433884,-500.0,0.00027397,7]
[343993530,1733171433894,-500.0,0.00027397,7]
[343993531,1733171433903,-500.0,0.00027397,7]
[343993532,1733171433913,-500.0,0.00027397,7]
[343993533,1733171433923,-500.0,0.00027397,7]
[343993534,1733171433932,-500.0,0.00027397,7]
[343993535,1733171433942,-2363.67852789,0.00027476,2]
[343993536,1733171433952,-320.14634319,0.0002765,5]
[343993537,1733171433964,-500.0,0.00027671,7]
[343993538,1733171433974,-500.0,0.00027671,7]
[343993539,1733171433984,-500.0,0.00027671,7]
[343993540,1733171433994,-500.0,0.00027671,7]
[343993541,1733171434003,-1091.53,0.00027671,7]
[343993542,1733171434012,-500.0,0.00027671,7]
[343993543,1733171434022,-500.0,0.00027671,7]
[343993544,1733171434031,-500.0,0.00027671,7]
[343993545,1733171434041,-500.0,0.00027671,7]
[343993546,1733171434051,-500.0,0.00027671,7]
[343993547,1733171434060,-500.0,0.00027671,7]
[343993548,1733171434071,-269.87895472,0.00027671,7]
[343993549,1733171434081,-500.0,0.00027671,7]
[343993550,1733171434092,-242.84425141,0.00027671,7]
[343993551,1733171434102,-500.0,0.00027671,7]
[343993552,1733171434115,-500.0,0.00027671,7]
[343993553,1733171434126,-500.0,0.00027671,7]
[343993554,1733171434138,-458.50214816,0.00027671,7]
[343993555,1733171434152,-4006.23,0.00027671,7]
[343993556,1733171434163,-500.0,0.00027671,7]
[343993557,1733171434174,-500.0,0.00027671,7]
[343993558,1733171434186,-500.0,0.00027671,7]
[343993559,1733171434195,-583.8,0.00027671,7]
[343993560,1733171434208,-500.0,0.00027671,7]
[343993561,1733171434218,-2367.49,0.00027671,7]
[343993562,1733171434228,-500.0,0.00027671,7]
[343993563,1733171434237,-500.0,0.00027671,7]
[343993564,1733171434247,-500.0,0.00027671,7]
[343993565,1733171434257,-500.0,0.00027671,7]
[343993566,1733171434267,-500.0,0.00027671,7]
[343993567,1733171434277,-500.0,0.00027671,7]
[343993568,1733171434287,-500.0,0.00027671,7]
[343993569,1733171434297,-500.0,0.00027671,7]
[343993570,1733171434308,-500.0,0.00027671,7]
[343993571,1733171434320,-500.0,0.00027671,7]
[343993572,1733171434331,-500.0,0.00027671,7]
[343993573,1733171434342,-500.0,0.00027671,7]
[343993574,1733171434353,-500.0,0.00027671,7]
[343993575,1733171434365,-500.0,0.00027671,7]
[343993576,1733171434376,-500.0,0.00027671,7]
[343993577,1733171434386,-500.0,0.00027671,7]
[343993578,1733171434398,-500.0,0.00027945,7]
[343993579,1733171434408,-500.0,0.00027945,7]
[343993580,1733171434418,-500.0,0.00027945,7]
[343993581,1733171434430,-1091.53,0.00027945,7]
[343993582,1733171434442,-500.0,0.00027945,7]
[343993583,1733171434452,-500.0,0.00027945,7]
[343993584,1733171434466,-500.0,0.00027945,7]
[343993585,1733171434476,-500.0,0.00027945,7]
[343993586,1733171434486,-500.0,0.00027945,7]
[343993587,1733171434496,-500.0,0.00027945,7]
[343993588,1733171434506,-500.0,0.00027945,7]
[343993589,1733171434516,-500.0,0.00027945,7]
[343993590,1733171434526,-4006.23,0.00027945,7]
[343993591,1733171434536,-500.0,0.00027945,7]
[343993592,1733171434546,-374.02868751,0.00027945,7]
[343993593,1733171434556,-500.0,0.00027945,7]
[343993594,1733171434565,-583.8,0.00027945,7]
[343993595,1733171434575,-500.0,0.00027945,7]
[343993596,1733171434586,-2367.49,0.00027945,7]
[343993597,1733171434596,-500.0,0.00027945,7]
[343993598,1733171434606,-500.0,0.00027945,7]
[343993599,1733171434617,-500.0,0.00027945,7]
[343993600,1733171434627,-561.18534592,0.00027945,7]
[343993601,1733171434637,-500.0,0.00027945,7]
[343993602,1733171434647,-500.0,0.00027945,7]
[343993603,1733171434657,-524.40545518,0.00027945,7]
[343993604,1733171434666,-500.0,0.00027945,7]
[343993605,1733171434676,-500.0,0.00027945,7]
[343993606,1733171434686,-500.0,0.00027945,7]
[343993607,1733171434696,-500.0,0.00027945,7]
[343993608,1733171434708,-500.0,0.00027945,7]
[343993609,1733171434718,-177.32480934,0.00027945,7]
[343993610,1733171434728,-500.0,0.00027945,7]
[343993611,1733171434738,-500.0,0.00027945,7]
[343993612,1733171434748,-500.0,0.00027993,5]
[343993613,1733171434757,-3131.94385255,0.00028,2]
[343993614,1733171434768,-155.01332248,0.00028049,2]
[343993615,1733171434778,-500.0,0.0002809,2]
[343993616,1733171434790,-271.4961971,0.0002809,2]
[343993617,1733171434800,-265.96495862,0.0002809,2]
[343993618,1733171434809,-291.22846152,0.0002809,2]
[343993619,1733171434819,-326.18195927,0.0002809,2]
[343993620,1733171434829,-9406.11862452,0.00028091,2]
[343993621,1733171434840,-500.0,0.00028219,7]
[343993622,1733171434850,-500.0,0.00028219,7]
[343993623,1733171434860,-1091.53,0.00028219,7]
[343993624,1733171434870,-500.0,0.00028219,7]
[343993625,1733171434880,-500.0,0.00028219,7]
[343993626,1733171434890,-393.83224887,0.00028219,7]
[343993627,1733171434900,-500.0,0.00028219,7]
[343993628,1733171434909,-500.0,0.00028219,7]
[343993629,1733171434919,-500.0,0.00028219,7]
[343993630,1733171434929,-500.0,0.00028219,7]
[343993631,1733171434938,-4006.23,0.00028219,7]
[343993632,1733171434948,-500.0,0.00028219,7]
[343993633,1733171434959,-500.0,0.00028219,7]
[343993634,1733171434971,-583.8,0.00028219,7]
[343993635,1733171434981,-500.0,0.00028219,7]
[343993636,1733171434991,-2367.49,0.00028219,7]
[343993637,1733171435001,-500.0,0.00028219,7]
[343993638,1733171435010,-500.0,0.00028219,7]
[343993639,1733171435019,-500.0,0.00028219,7]
[343993640,1733171435029,-317.01742384,0.00028219,7]
[343993641,1733171435039,-500.0,0.00028219,7]
[343993642,1733171435048,-500.0,0.00028219,7]
[343993643,1733171435058,-500.0,0.00028219,7]
[343993644,1733171435067,-500.0,0.00028219,7]
[343993645,1733171435077,-500.0,0.00028219,7]
[343993646,1733171435086,-500.0,0.00028219,7]
[343993647,1733171435096,-500.0,0.00028437,5]
[343993648,1733171435106,-587.0,0.00028464,2]
[343993649,1733171435118,-2363.67852789,0.00028464,2]
[343993650,1733171435127,-9406.11862452,0.00028482,2]
[343993651,1733171435138,-500.0,0.00028493,7]
[343993652,1733171435147,-500.0,0.00028493,7]
[343993653,1733171435156,-1091.53,0.00028493,7]
[343993654,1733171435165,-500.0,0.00028493,7]
[343993655,1733171435175,-500.0,0.00028493,7]
[343993656,1733171435186,-500.0,0.00028493,7]
[343993657,1733171435196,-482.16030265,0.00028493,7]
[343993658,1733171435209,-500.0,0.00028493,7]
[343993659,1733171435218,-4006.23,0.00028493,7]
[343993660,1733171435227,-500.0,0.00028493,7]
[343993661,1733171435238,-500.0,0.00028493,7]
[343993662,1733171435248,-583.8,0.00028493,7]
[343993663,1733171435257,-500.0,0.00028493,7]
[343993664,1733171435266,-2367.49,0.00028493,7]
[343993665,1733171435275,-500.0,0.00028493,7]
[343993666,1733171435285,-500.0,0.00028493,7]
[343993667,1733171435295,-500.0,0.00028493,7]
[343993668,1733171435305,-371.66358818,0.00028493,7]
[343993669,1733171435314,-500.0,0.00028493,7]
[343993670,1733171435323,-500.0,0.00028493,7]
[343993671,1733171435334,-606.75,0.00028493,7]
[343993672,1733171435343,-514.52,0.00028493,7]
[343993673,1733171435352,-500.0,0.00028493,7]
[343993674,1733171435362,-9406.11862452,0.00028538,2]
[343993675,1733171435371,-1000.0,0.00028541,5]
[343993676,1733171435380,-500.0,0.00028767,7]
[343993677,1733171435390,-500.0,0.00028767,7]
[343993678,1733171435400,-1091.53,0.00028767,7]
[343993679,1733171435410,-500.0,0.00028767,7]
[343993680,1733171435420,-500.0,0.00028767,7]